Workbook

Sheet Cover Page
A14: PRICING SUBMISSION
A17: RFP NO: | D17: RFP NO. 9501/16/04/2025
A19: RFP NAME: | D19: Procurement and installation of an HVAC system and replacement of the BMS System at the CSIR ICC for a period of three (3) years.
A21: BIDDER NAME
A25: Intructions:
A26: Kindly furnish comprehensive pricing details in accordance with the outlined Bill of Quantity in Annexure D. It is imperative that the provided pricing strictly adheres to the Pricing Schedule. Any deviation from this guideline will lead to disqualification, as it could render the bid non-responsive
A27: All tendered amounts must include Preliminaries and Generals (P&G)

Sheet Summary
A2: PROJECT: | B2: Procurement and installation of an HVAC system and replacement of the BMS System at the CSIR ICC for a period of three (3) years
A3: RFP No. | B3: RFP NO. 9501/16/04/2025
B5: CONSTRUCTION BILL | G5: Appointment
B6: Scope: | G6: Value (incl. P&G's)
B7: Preliminaries | G7: =Preliminaries!G42 -> 0
B8: Provisional Amounts | G8: ='Provisional Amounts'!G58 -> R 10,000,000.00
B9: Ducting | G9: =Ducting!G48 -> 0
B10: Piping and Fittings | G10: ='Piping & Fitting'!G142 -> 0
B11: Equipment | G11: =Equipment!G138 -> 0
B12: Terminals | G12: =Terminals!G65 -> 0
B13: VRF | G13: =VRF!G102 -> 0
B24: Sub Total (excluding VAT and Contingencies)
B25: Project contingencies at 20%
B26: Sub Total (excluding VAT)
B27: VAT @15.5%
B28: Sub total
G29: =SUM(G7:G28) -> R 10,000,000.00

Sheet Preliminaries
A1: PROJECT: | B1: Procurement and installation of an HVAC system and replacement of the BMS System at the CSIR ICC for a period of three (3) years
A2: RFP No. | B2: RFP NO. 9501/16/04/2025
B4: Page/Item | C4: Bill description | D4: Unit | E4: Quantity | F4: Tender Rate | G4: Value
B5: PL | C5: Preliminaries
B7: Pl1 | C7: Drawings, Submissions and Detailed Engineering | D7: No | E7: 1.00 | G7: =F7*E7 -> 0
B8: Pl2 | C8: Work provided by Others | D8: No | E8: 1.00 | G8: =F8*E8 -> 0
B9: Pl3 | C9: Delivery of material, equipment and ducting to site | D9: No | E9: 1.00 | G9: =F9*E9 -> 0
B10: Pl4 | C10: High level access for installation and commissioning | D10: No | E10: 1.00 | G10: 0
B11: Pl5 | C11: Compliance with Standards and Regulations | D11: No | E11: 1.00 | G11: 0
B12: Pl6 | C12: Health and Safety Requirements, including all medicals and Working on Heights Training | D12: No | E12: 1.00 | G12: 0
B13: Pl7 | C13: Statutory Certifications (Electrical and Refrigeration)
B14: Pl8 | C14: Scaffolding | D14: No | E14: 1.00 | G14: 0
B15: Pl9 | C15: Programming | D15: No | E15: 1.00 | G15: 0
B16: Pl10 | C16: Contract Management | D16: No | E16: 1.00 | G16: 0
B17: Pl11 | C17: Organization and Management of Subcontractors | D17: No | E17: 1.00 | G17: 0
B18: Pl12 | C18: Allowance for Generator Power During Construction
B19: Pl13 | C19: Protection Against Damage | D19: No | E19: 1.00 | G19: 0
B20: Pl14 | C20: Access to Equipment and Systems | D20: No | E20: 1.00 | G20: 0
B21: Pl15 | C21: Cleaning and Start-up | D21: No | E21: 1.00 | G21: 0
B22: Pl16 | C22: Pre-commissioning of Equipment Before Change-over
B23: Pl17 | C23: Testing, Balancing, Commissioning, Operation of Plant and Handover after Final Change-Over | D23: No | E23: 1.00 | G23: 0
B24: Pl18 | C24: Allow for training and certification of client selected personnel. As per the specification. | D24: No | E24: 1.00 | G24: =F24*E24 -> 0
B25: Pl19 | C25: Construction Guarantee & Insurances | D25: No | E25: 1.00 | G25: 0
B26: Pl20 | C26: Payment Guarantees on Imported Capital Plant | D26: No | E26: 1.00 | G26: =F26*E26 -> 0
B27: Pl21 | C27: Quality Management System, Testing and Inspection | D27: No | E27: 1.00 | G27: 0
B28: Pl22 | C28: Operating and Maintenance Manuals | D28: No | E28: 1.00 | G28: 0
B29: Pl23 | C29: Two Year's Maintenance | D29: No | E29: 1.00 | G29: =I31 -> 0
B30: Pl24 | C30: Special Attendance | D30: No | E30: 1.00 | G30: 0
B31: Project contingencies at 20% | C31: Preparation of Pre-Start up Procedures | D31: No | E31: 1.00 | G31: 0
B32: Pl26 | C32: Completion of Subcontract work | D32: No | E32: 1.00 | G32: 0
B33: Pl27 | C33: Building Tuning | D33: No | E33: 1.00 | G33: 0
B34: Pl28 | C34: Environmental Management, Houskeeping and Waste Disposal | D34: No | E34: 1.00 | G34: 0
B35: Pl29 | C35: Water Management | D35: No | E35: 1.00 | G35: 0
B36: Pl30 | C36: Air Tightness Testing | D36: No | E36: 1.00 | G36: 0
B37: Pl31 | C37: Travelling and Accommodation | D37: No | E37: 1.00 | G37: 0
B38: Pl32 | C38: Site Establishment | D38: No | E38: 1.00 | G38: 0
B39: Pl33 | C39: As-Built Drawings | D39: No | E39: 1.00 | G39: 0
B40: Pl34 | C40: End of Warrantee Handover | D40: No | E40: 1.00 | G40: =F40*E40 -> 0
G42: =SUM(G5:G41) -> 0

Sheet Provisional Amounts
A1: PROJECT: | B1: Procurement and installation of an HVAC system and replacement of the BMS System at the CSIR ICC for a period of three (3) years
A2: RFP No. | B2: RFP NO. 9501/16/04/2025
B4: Page/Item | C4: Bill description | D4: Unit | E4: Quantity | F4: Tender Rate | G4: Value
B5: PA | C5: Provisional Amounts
B7: PA1 | C7: Controls and Electrical Complete (R 1500 000.00) | D7: No | E7: 1.00 | F7: R1,500,000.00 | G7: =F7*E7 -> R1,500,000.00
C8: - Central Plant Manager (Carrel PCO5 or Similar) incl. all wiring, sensors and reticulation
C9: - AHU Controller (Carrel PCO5 or Similar) incl. all wiring, sensors and reticulation
C10: - Programming of all controllers
C11: - CO2 Monitoring on all AHU's
C12: - Main Chiller Plant MCC
C13: - Reticulation from main MCC to all equipment including Ice Storage and Hot Water Plant (valves, motorised dampers, pumps, AHU's, chillers, fans, VSD's, etc)
B14: PA2 | C14: Supply, installation and commissioning of new electrical feeds to the HVAC systems including, circuit breakers, modifications to existing distribution boards, cabling, cable trays, new distribution boards and issuing if certificate of compliances. (R 1500 000.00) | D14: No | E14: 1.00 | F14: R1,500,000.00 | G14: =F14*E14 -> R1,500,000.00
B15: PA3 | C15: Allowance for coil treatment (Chillers, Ahus's and VRF) (R 100 000.00) | D15: No | E15: 1.00 | F15: R100,000.00 | G15: =F15*E15 -> R100,000.00
B16: PA4 | C16: Builders Work (R 2 000 000.00) | D16: No | E16: 1.00 | F16: R2,000,000.00 | G16: =F16*E16 -> R2,000,000.00
C17: - Special Supports in Plantrooms for Piping
C18: - Specialised Plinths
C19: - Water Proofing
C20: - Ceiling alterations
C21: - Removal and reinstallation of aluminium doors for equipment access
C22: - Plumbing alterations and additions
C23: - Wall penetrations and making good
B24: PA5 | C24: Allowance for Phased Rigging (R 400 000.00) | D24: No | E24: 1.00 | F24: R400,000.00 | G24: =F24*E24 -> R400,000.00
B25: PA6 | C25: Removal of Existing (R 400 000.00) | D25: No | E25: 1.00 | F25: R400,000.00 | G25: R400,000.00
C26: - De-commisssioning of all equipment
C27: - Stripout of exisitng equipment (chillers, AHU's, piping, ducting, cabling, etc.)
C28: - Removal and safe disposal of all equipment and materials
B29: PA7 | C29: BMS (R 1 000 000.00) | D29: No | E29: 1.00 | F29: R1,000,000.00 | G29: R1,000,000.00
B30: PA8 | C30: Allow for camera inspection of all existing ducting (R 400 000.00) | D30: No | E30: 1.00 | F30: R400,000.00 | G30: R400,000.00
B31: Project contingencies at 20% | C31: Connection to existing ducting (10-off) (R 300 000.00) | D31: No | E31: 1.00 | F31: R300,000.00 | G31: R300,000.00
B32: PA10 | C32: Re-Commissioning and Re-Balancing of Existing (R 500 000.00) | D32: No | E32: 1.00 | F32: R500,000.00 | G32: =F32*E32 -> R500,000.00
B33: PA11 | C33: Forward Cover on Imported Equipment (R 500 000.00) | D33: No | E33: 1.00 | F33: R500,000.00 | G33: R500,000.00
B34: PA12 | C34: Continuous colour coding lines for all piping (R 200 000.00) | D34: No | E34: 1.00 | F34: R200,000.00 | G34: R200,000.00
B35: PA13 | C35: Relocation of existing split condensing units (R 200 000.00) | D35: No | E35: 1.00 | F35: R200,000.00 | G35: R200,000.00
B36: PA14 | C36: Specialist fire sealant in fire rated partitions (R 500 000.00) | D36: No | E36: 1.00 | F36: R500,000.00 | G36: R500,000.00
B37: PA15 | C37: Structural steelworks (R 500 000.00) | D37: No | E37: 1.00 | F37: R500,000.00 | G37: R500,000.00
G58: =SUM(G5:G57) -> R10,000,000.00

Sheet Ducting
A1: PROJECT: | B1: Procurement and installation of an HVAC system and replacement of the BMS System at the CSIR ICC for a period of three (3) years
A2: RFP No. | B2: RFP NO. 9501/16/04/2025
B4: Page/Item | C4: Bill description | D4: Unit | E4: Quantity | F4: Tender Rate | G4: Value
B5: A | C5: Ducting
B6: A1 | C6: Price to include for low pressure galvanised ducting including 50mm Sonic Liner, installation and labour, c/w all fixing and supports
B7: A1.1 | C7: Insulated Straight Ducting
B8: A1.1.1 | C8: Category 1 - Ducting with a width or height < 750mm and semi-perimeter < 1150mm | D8: m² | E8: =230*1.1 -> 253 | G8: =F8*E8 -> 0
B9: A1.1.2 | C9: Category 2 - Ducting with a width or height < 750mm and semi-perimeter > 1150mm | D9: m² | E9: =96*1.1 -> 106 | G9: =F9*E9 -> 0
B10: A1.1.3 | C10: Category 3 - Ducting with longest side between 751mm and 1350mm | D10: m² | E10: =233*1.1 -> 256 | G10: 0
B11: A1.1.4 | C11: Category 4 - Ducting with longest side between 1351mm and 2000mm | D11: m² | E11: =361*1.1 -> 397 | G11: 0
B12: A1.1.6 | C12: Category 6 - Re-inforced Spiral Ducting
B13: A1.2.6.1 | C13: - dia 150mm | D13: m² | E13: =(9.84*1.1)*PI()*0.15 -> 5 | G13: =F13*E13 -> 0
B15: A1.2 | C15: Insulated Transformations and Bends
B16: A1.2.1 | C16: Category 1 - Ducting with a width or height > 750mm and semi-perimeter < 1150mm | D16: m² | E16: =32*1.1 -> 35 | G16: =F16*E16 -> 0
B17: A1.2.2 | C17: Category 2 - Ducting with a width or height > 750mm and semi-perimeter > 1150mm | D17: m² | E17: =15*1.1 -> 17 | G17: 0
B18: A1.2.3 | C18: Category 3 - Ducting with longest side between 750mm and 1350mm | D18: m² | E18: =75*1.1 -> 83 | G18: 0
B19: A1.2.4 | C19: Category 4 - Ducting with longest side between 1351mm and 2000mm | D19: m² | E19: =68*1.1 -> 75 | G19: 0
B21: A1.3 | C21: Insulated Straight Ducting
B22: A3 | C22: Price to include for 50mm Sonic Liner c/w installation and labour
B23: A1.3.1 | C23: Category 1 - Ducting with a width or height < 750mm and semi-perimeter < 1150mm | D23: m² | E23: =230*1.1 -> 253 | G23: =F23*E23 -> 0
B24: A1.3.2 | C24: Category 2 - Ducting with a width or height < 750mm and semi-perimeter > 1150mm | D24: m² | E24: =96*1.1 -> 106 | G24: =F24*E24 -> 0
B25: A1.3.3 | C25: Category 3 - Ducting with longest side between 751mm and 1350mm | D25: m² | E25: =233*1.1 -> 256 | G25: 0
B26: A1.3.4 | C26: Category 4 - Ducting with longest side between 1351mm and 2000mm | D26: m² | E26: =361*1.1 -> 397 | G26: 0
B27: A1.3.6 | C27: Category 6 - Re-inforced Spiral Ducting
B28: A1.3.6.1 | C28: - dia 150mm | D28: m² | E28: =(9.84*1.1)*PI()*0.15 -> 5 | G28: =F28*E28 -> 0
B31: Project contingencies at 20%
G48: =SUM(G5:G47) -> 0

Sheet Piping & Fitting
A1: PROJECT: | B1: Procurement and installation of an HVAC system and replacement of the BMS System at the CSIR ICC for a period of three (3) years
A2: RFP No. | B2: RFP NO. 9501/16/04/2025
B4: Page/Item | C4: Bill description | D4: Unit | E4: Quantity | F4: Tender Rate | G4: Value
B5: A | C5: CHW Piping and Fittings
B6: A1 | C6: Straight chilled water piping including brackets supported
B7: A1.1 | C7: Black steel chilled water piping including painting (primer and final coat), insulation and all pipe supports
B8: A1.1.1 | C8: NB 150, Medium Black Steel | D8: m | E8: 518 | G8: =F8*E8 -> 0
B9: A1.1.2 | C9: NB 100, Medium Black Steel | D9: m | E9: 267 | G9: =F9*E9 -> 0
B10: A1.1.3 | C10: NB 80, Medium Black Steel | D10: m | E10: 21 | G10: 0
B11: A1.1.4 | C11: NB 65, Medium Black Steel | D11: m | E11: 180 | G11: 0
B12: A1.1.5 | C12: NB 50, Medium Black Steel | D12: m | E12: 54 | G12: 0
B13: A1.1.6 | C13: NB 32, Medium Black Steel | D13: m | E13: 30 | G13: 0
B14: A1.1.7 | C14: NB 25, Medium Black Steel | D14: m | E14: 30 | G14: 0
C15: Chilled Water Cladding
C16: Galvanised Cladding c/w strapping and installation
B17: A1.1.8 | C17: NB 150, Medium Black Steel | D17: m | E17: 466 | G17: =F17*E17 -> 0
B18: A1.1.9 | C18: NB 100, Medium Black Steel | D18: m | E18: 240 | G18: =F18*E18 -> 0
B19: A1.1.10 | C19: NB 80, Medium Black Steel | D19: m | E19: 19 | G19: 0
B20: A1.1.11 | C20: NB 65, Medium Black Steel | D20: m | E20: 162 | G20: 0
B21: A1.1.12 | C21: NB 50, Medium Black Steel | D21: m | E21: =49+80 -> 129 | G21: 0
B22: A1.1.13 | C22: NB 32, Medium Black Steel | D22: m | E22: =27+50 -> 77 | G22: 0
B23: A1.1.14 | C23: NB 25, Medium Black Steel | D23: m | E23: =27+50 -> 77 | G23: 0
B25: A2 | C25: Pair Flanges c/w bolts, washers and nuts
B26: A2.1 | C26: Black steel chilled water flanges including painting (primer and final coat) and insulation
B27: A2.1.1 | C27: NB 150, Medium Black Steel | D27: No | E27: =E73+E83+E88+E92+E121+E131 -> 55 | G27: =F27*E27 -> 0
B28: A2.1.2 | C28: NB 125, Medium Black Steel | D28: No | E28: =E87+E120 -> 6 | G28: 0
B29: A2.1.3 | C29: NB 100, Medium Black Steel | D29: No | E29: =E72+E82+E119+E130 -> 38 | G29: 0
B30: A2.1.4 | C30: NB 80, Medium Black Steel | D30: No | E30: =E71+E81+E118+E129 -> 23 | G30: 0
B31: Project contingencies at 20%
B32: A3 | C32: Chilled Water Elbows with
B33: A3.1 | C33: Black steel chilled water bends including painting (primer and final coat) and insulation
B34: A3.1.1 | C34: 90° Elbow NB 150, Medium Black Steel | D34: No | E34: 82 | G34: =F34*E34 -> 0
B35: A3.1.2 | C35: 90° Elbow NB 100, Medium Black Steel | D35: No | E35: 73 | G35: 0
B36: A3.1.3 | C36: 90° Elbow NB 80, Medium Black Steel | D36: No | E36: 14 | G36: 0
B37: A3.1.4 | C37: 90° Elbow NB 65, Medium Black Steel | D37: No | E37: 71 | G37: 0
B38: A3.1.5 | C38: 90° Elbow NB 50, Medium Black Steel | D38: No | E38: =47+10 -> 57 | G38: 0
B39: A3.1.6 | C39: 90° Elbow NB 32, Medium Black Steel | D39: No | E39: =3+10 -> 13 | G39: 0
B41: A4 | C41: Chilled Water Eccentric Reducers with
B42: A4.1 | C42: Black steel chilled water reducers including painting (primer and final coat) and insulation
B43: A4.1.1 | C43: Red. NB 110 - 65, Medium Black Steel | D43: No | E43: 2 | G43: =F43*E43 -> 0
B44: A4.1.2 | C44: Red. NB 150 - 100, Medium Black Steel | D44: No | E44: 4 | G44: 0
B45: A4.1.3 | C45: Red. NB 200 - 150, Medium Black Steel | D45: No | E45: 4 | G45: 0
B46: A4.1.4 | C46: Red. NB 25 - 20, Medium Black Steel | D46: No | E46: 4 | G46: 0
B47: A4.1.5 | C47: Red. NB 50 - 32, Medium Black Steel | D47: No | E47: 1 | G47: 0
B48: A4.1.6 | C48: Red. NB 50 - 40, Medium Black Steel | D48: No | E48: 8 | G48: 0
B49: A4.1.7 | C49: Red. NB 80 - 50, Medium Black Steel | D49: No | E49: 8 | G49: 0
B51: A5 | C51: Chilled Water Equal Tees
B52: A5.1 | C52: Black steel chilled water tees including painting (primer and final coat) and insulation
B53: A5.1.1 | C53: Equal Tee NB 150, Medium Black Steel | D53: No | E53: 29 | G53: =F53*E53 -> 0
B54: A5.1.2 | C54: Equal Tee NB 100, Medium Black Steel | D54: No | E54: 6 | G54: 0
B55: A5.1.3 | C55: Equal Tee NB 80, Medium Black Steel | D55: No | E55: 4 | G55: 0
B56: A5.1.4 | C56: Equal Tee NB 50, Medium Black Steel | D56: No | E56: 4 | G56: 0
B58: A6 | C58: Chilled Water Reducing Tees/Tie Ins
B59: A6.1 | C59: Black steel chilled water tees including painting (primer and final coat) and insulation
B60: A6.1.2 | C60: NB 150, 150, 100 Medium Black Steel | D60: No | E60: 9 | G60: =F60*E60 -> 0
B62: A7 | C62: Chilled Water Stub Take-offs with NB > 50mm
B63: A7.1 | C63: Black steel chilled water tees including painting (primer and final coat) and insulation
B64: A7.2 | C64: NB 20 Medium Black Steel | D64: No | E64: 2 | G64: =F64*E64 -> 0
B65: A7.3 | C65: NB 80 Medium Black Steel | D65: No | E65: 2 | G65: 0
B66: A7.4 | C66: NB 65 Medium Black Steel | D66: No | E66: 26 | G66: 0
B67: A7.5 | C67: NB 50 Medium Black Steel | D67: No | E67: 14 | G67: 0
B68: A7.6 | C68: NB 25 Medium Black Steel | D68: No | E68: 7 | G68: 0
B70: A8 | C70: Chilled Water Non return Valves
B71: A8.1 | C71: NB 80 | D71: No | E71: 2 | G71: =F71*E71 -> 0
B72: A8.2 | C72: NB 100 | D72: No | E72: 4 | G72: 0
B73: A8.3 | C73: NB 150 | D73: No | E73: 6 | G73: 0
B75: A9 | C75: Chilled Water strainers
B76: A9.1 | C76: NB 20 | D76: No. | E76: 1 | G76: =F76*E76 -> 0
B77: A9.2 | C77: NB 32 | D77: No. | E77: 6 | G77: =F77*E77 -> 0
B78: A9.3 | C78: NB 40 | D78: No. | E78: 3 | G78: 0
B79: A9.4 | C79: NB 50 | D79: No. | E79: 3 | G79: 0
B80: A9.5 | C80: NB 65 | D80: No. | E80: 6 | G80: 0
B81: A9.6 | C81: NB 80 | D81: No | E81: 3 | G81: 0
B82: A9.7 | C82: NB 100 | D82: No | E82: =E83*2 -> 12 | G82: 0
B83: A9.8 | C83: NB 150 | D83: No | E83: 6 | G83: 0
B85: A10 | C85: Chilled Water Balancing Valve
B86: A10.1 | C86: Balancing Valve supplied and installed
B87: A10.1.1 | C87: NB 125 | D87: No | E87: 2 | G87: =F87*E87 -> 0
B88: A10.1.2 | C88: NB 150 | D88: No | E88: 1 | G88: 0
B90: A11 | C90: Chilled Water 3-Way Open/Close Valve
B91: A11.1 | C91: 3-Way Valve supplied and installed
B92: A11.1.1 | C92: NB 150 | D92: No | E92: 1 | G92: =F92*E92 -> 0
B94: A12 | C94: Chilled Water Instruments
B95: A12.1 | C95: Pressure gauge, c/w gauge tube and gauge cock | D95: No | E95: 54 | G95: =F95*E95 -> 0
B96: A12.2 | C96: Thermometer | D96: No | E96: =32+20+20 -> 72 | G96: 0
B97: A12.3 | C97: Binder test points | D97: No | E97: =54+30+30 -> 114 | G97: 0
B98: A12.4 | C98: Chilled water flow switch | D98: No | E98: 12 | G98: 0
B100: A13 | C100: Chilled Water Auto Air Vents
B101: A13.1 | C101: NB 15 | D101: No | E101: 16 | G101: =F101*E101 -> 0
B103: A14 | C103: Chilled Water Drain Cock
B104: A14.1 | C104: NB 25 | D104: No | E104: 10 | G104: =F104*E104 -> 0
B106: A15 | C106: Pressure Relief Valve
B107: A15.1 | C107: NB 25 | D107: No | E107: 1 | G107: =F107*E107 -> 0
B109: A16 | C109: Chilled Water Sockets for mounting sensors
B110: A16.1 | C110: NB 25 | D110: No | E110: =SUM(E95:E109) -> 279 | G110: =F110*E110 -> 0
B112: A17 | C112: Chilled Water Isolating Valves
B113: A17.1 | C113: Shut-off valve NB 20, Ball Valve | D113: No. | E113: =2+3 -> 5 | G113: =F113*E113 -> 0
B114: A17.2 | C114: Shut-off valve NB 32, Ball Valve | D114: No. | E114: =12+2 -> 14 | G114: =F114*E114 -> 0
B115: A17.3 | C115: Shut-off valve NB 40, Ball Valve | D115: No. | E115: 6 | G115: 0
B116: A17.4 | C116: Shut-off valve NB 50, Ball Valve | D116: No. | E116: 6 | G116: 0
B117: A17.5 | C117: Shut-off valve NB 65, Ball Valve | D117: No. | E117: 12 | G117: 0
B118: A17.6 | C118: Shut-off valve NB 80, Cast Iron Butterfly | D118: No | E118: =8+2 -> 10 | G118: 0
B119: A17.7 | C119: Shut-off valve NB 100, Cast Iron Butterfly | D119: No | E119: 16 | G119: 0
B120: A17.8 | C120: Shut-off valve NB 125, Cast Iron Butterfly | D120: No | E120: 4 | G120: 0
B121: A17.9 | C121: Shut-off valve NB 150, Cast Iron Butterfly | D121: No | E121: 27 | G121: 0
B123: A18 | C123: Chilled Water Flexible Pipe Connections (Bell house)
B124: A18.1 | C124: NB 20 | D124: No. | E124: 4 | G124: =F124*E124 -> 0
B125: A18.2 | C125: NB 32 | D125: No | E125: 24 | G125: =F125*E125 -> 0
B126: A18.3 | C126: NB 40 | D126: No | E126: 12 | G126: 0
B127: A18.4 | C127: NB 50 | D127: No | E127: 12 | G127: 0
B128: A18.5 | C128: NB 65 | D128: No | E128: 24 | G128: 0
B129: A18.6 | C129: NB 80 flexible pipe connection, flanged connection | D129: No | E129: =4+4 -> 8 | G129: =F129*E129 -> 0
B130: A18.7 | C130: NB 100 flexible pipe connection, flanged connection | D130: No | E130: 6 | G130: 0
B131: A18.8 | C131: NB 150 flexible pipe connection, flanged connection | D131: No | E131: 14 | G131: 0
B133: A19 | C133: Water Treatment
B134: A19.1 | C134: Automated Water Treatment c/w Valves and Connection pipes for chilled water, incl. (10000 L) | D134: Lot | E134: 1 | G134: =F134*E134 -> 0
B135: A19.2 | C135: Automated Water Treatment c/w Valves and Connection pipes for hot water, incl. (42000L) | D135: Lot | E135: 1 | G135: 0
B137: A20 | C137: Blanc Flanges c/w bolts, washers and nuts
B138: A20.1 | C138: Black steel chilled water flanges including painting (primer and final coat), insulation
B139: A20.1.1 | C139: NB 100, Medium Black Steel | D139: No | E139: 1 | G139: =F139*E139 -> 0
B140: A20.1.2 | C140: NB 150, Medium Black Steel | D140: No | E140: 20 | G140: 0
G142: =SUM(G5:G141) -> 0

Sheet Equipment
A1: PROJECT: | B1: Procurement and installation of an HVAC system and replacement of the BMS System at the CSIR ICC for a period of three (3) years
A2: RFP No. | B2: RFP NO. 9501/16/04/2025
B4: Page/Item | C4: Bill description | D4: Unit | E4: Quantity | F4: Tender Rate | G4: Value
B5: A | C5: 4-Pipe Air-Cooled Heat Recovery Chiller
B6: A1 | C6: Chiller supply
B7: A1.1 | C7: Price to include supply and delivery to site, including commissioning by supplier and two year free maintenance and guarantee
B8: A1.1.1 | C8: 277kWc, 132 kWh | D8: No | E8: 2 | G8: =F8*E8 -> 0
B9: A1.1.2 | C9: Anti-vibration mountings on unit | D9: No | E9: 2 | G9: =F9*E9 -> 0
B11: A2 | C11: Installation of Chiller
B12: A2.1 | C12: Mark-up unit on by HVAC Contractor (Specify %) | D12: % | G12: =SUM(G8:G10)*F12 -> 0
B13: A2.2 | C13: Installation of Chiller (Labour Only) | D13: Lot | E13: 2 | G13: =F13*E13 -> 0
B14: A2.3 | C14: Pipe connections (Labour only) | D14: Lot | E14: 2 | G14: =F14*E14 -> 0
B15: A2.4 | C15: Electrical Connection of Unit | D15: Lot | E15: 2 | G15: =F15*E15 -> 0
B17: B | C17: 2-Pipe Air-Cooled Heat Pump Chiller
B18: B1 | C18: Heat Pump Only Supply
B19: B1.1 | C19: Price to include supply and delivery to site, including commissioning by supplier and two year free maintenance and guarantee
B20: B1.1.1 | C20: 541.2 kWh, 619.4 kWc | D20: No | E20: 1 | G20: =F20*E20 -> 0
B21: B1.1.2 | C21: Anti-vibration mountings on unit | D21: No | E21: 1 | G21: =F21*E21 -> 0
B23: B2 | C23: Installation of Heat Pump Chiller
B24: B2.1 | C24: Mark-up unit on by HVAC Contractor (Specify %) | D24: % | G24: =SUM(G20:G22)*F24 -> 0
B25: B2.2 | C25: Installation of Chiller (Labour Only) | D25: Lot | E25: 1 | G25: =F25*E25 -> 0
B26: B2.3 | C26: Pipe connections (Labour only) | D26: Lot | E26: 1 | G26: =F26*E26 -> 0
B27: B2.5 | C27: Electrical Connection of Unit | D27: Lot | E27: 1 | G27: =F27*E27 -> 0
B29: C | C29: Chilled Water
B30: C1 | C30: Chilled Water Energy Control Valves
B31: Project contingencies at 20% | C31: Pressure Independent Energy Control Valve c/w modulating actuator controlled via wall mounted controller
B32: C1.1.1 | C32: 2-way Pressure Independent Energy Valve NB 20 | D32: No. | E32: 1 | G32: =F32*E32 -> 0
B33: C1.1.2 | C33: 2-way Pressure Independent Energy Valve NB 25 | D33: No. | E33: =5+3 -> 8 | G33: 0
B34: C1.1.3 | C34: 2-way Pressure Independent Energy Valve NB 32 | D34: No. | E34: =4+2 -> 6 | G34: 0
B35: C1.1.4 | C35: 2-way Pressure Independent Energy Valve NB 40 | D35: No. | E35: 0 | G35: 0
B36: C1.1.5 | C36: 2-way Pressure Independent Energy Valve NB 50 | D36: No. | E36: 6 | G36: 0
B37: C1.1.6 | C37: 2-way Pressure Independent Energy Valve NB 65 | D37: No. | E37: 4 | G37: 0
B39: C2 | C39: Electrocnic Flow Meter
B40: C2.1 | C40: Electronic Water flow meter supplied and installed
B41: C2.1.1 | C41: NB 80 | D41: No | E41: 2 | G41: =F41*E41 -> 0
B42: C2.1.2 | C42: NB 100 | D42: No | E42: 2 | G42: =F42*E42 -> 0
B43: C2.1.3 | C43: NB 150 | D43: No | E43: 4 | G43: =F43*E43 -> 0
B45: C3 | C45: Chilled Water 3-Way Modulating Valve
B46: C3.1 | C46: 3-Way Modulating Valve supplied and installed
B47: C3.1.1 | C47: NB 150 | D47: No | E47: 1 | G47: =F47*E47 -> 0
B49: C4 | C49: Gravity Feed Expansion Tank
B50: C4.1 | C50: Chilled Water Circuit for ice storage pressure booster set (150L hydrosphere) | D50: No | E50: 1 | G50: =F50*E50 -> 0
B51: C4.2 | C51: 00 | D51: No | E51: 1 | G51: =F51*E51 -> 0
B53: D | C53: 4-Pipe CAV Air Handling Unit, complete with chilled water cooling coil, hot water heating coil, supply air fan, primary and secondary filtration
B54: D1 | C54: Supply of AHU
B55: D1.1 | C55: Price to include supply and delivery to site, including two year free maintenance and guarantee
B56: D1.1.1 | C56: AHU-01, 1 900L/s - 37.6 kW Cooling, 16 kW Heating | D56: No | E56: 1 | G56: =F56*E56 -> 0
B57: D1.1.2 | C57: AHU-02, 2 600L/s - 49.8 kW Cooling, 22.7 kW Heating | D57: No | E57: 1 | G57: =F57*E57 -> 0
B58: D1.1.3 | C58: AHU-03, 1 400L/s - 23.5 kW Cooling, 11.5 kW Heating | D58: No | E58: 1 | G58: 0
B59: D1.1.4 | C59: AHU-04, 7 500L/s - 149.0 kW Cooling, 64.6 kW Heating | D59: No | E59: 1 | G59: 0
B60: D1.1.5 | C60: AHU-05, 2 400L/s - 49.2 kW Cooling, 23.7 kW Heating | D60: No | E60: 1 | G60: 0
B61: D1.1.6 | C61: AHU-06, 3 200L/s - 62.8 kW Cooling, 35.5k W Heating | D61: No | E61: 1 | G61: 0
B62: D1.1.7 | C62: AHU-07, 9 480L/s - 163.0 kW Cooling, 88.0 kW Heating | D62: No | E62: 1 | G62: 0
B63: D1.1.8 | C63: AHU-08, 11 500L/s - 205.0 kW Cooling, 118.0 kW Heating | D63: No | E63: 1 | G63: 0
B64: D1.1.9 | C64: AHU-09, 10 500L/s - 184.0 kW Cooling, 187.0 kW Heating | D64: No | E64: 1 | G64: =F64*E64 -> 0
B65: D1.1.10 | C65: AHU-10, 6 990L/s - 118.0 kW Cooling, 80.3 kW Heating | D65: No | E65: 1 | G65: 0
B66: D1.1.11 | C66: Anti-vibration mountings on unit | D66: Lot | E66: 10 | G66: =F66*E66 -> 0
B68: D2 | C68: Installation of AHU (Labour Only)
B69: D2.1 | C69: HVAC Contractor mark-up on air-handling unit (Specify _____%) | D69: % | E69: 1 | G69: =SUM(G56:G67)*F69 -> 0
B70: D2.2 | C70: Installation of AHU (Labour Only) | D70: Lot | E70: 10 | G70: =F70*E70 -> 0
B71: D2.3 | C71: Chilled and Hot water pipe connections (Labour Only) | D71: Lot | E71: 10 | G71: 0
B72: D2.4 | C72: Electrical connection of unit | D72: Lot | E72: 10 | G72: 0
B73: D2.5 | C73: Commissioning and balancing of unit | D73: Lot | E73: 10 | G73: 0
B74: D2.6 | C74: Condensate drain connection of unit (Labour Only) | D74: Lot | E74: 10 | G74: 0
B75: D2.7 | C75: Canvas duct connection of unit | D75: Lot | E75: 10 | G75: 0
B77: D3 | C77: Stand Alone Control System | K77: =IF(J77="","",IF($H77="","",IF(ISNUMBER(J77),$H77*J77,0))) ->  | L77: =IF(IF(ISNUMBER(#REF!),#REF!,0)+IF(ISNUMBER(K77),K77,0)=0,"",IF(ISNUMBER(#REF!),#REF!,0)+IF(ISNUMBER(K77),K77,0)) ->  | O77: =IF(N77="","",IF($H77="","",IF(ISNUMBER(N77),$H77*N77,0))) ->  | Q77: =IF(P77="","",IF($H77="","",IF(ISNUMBER(P77),$H77*P77,0))) ->  | R77: =IF(IF(ISNUMBER(O77),O77,0)+IF(ISNUMBER(Q77),Q77,0)=0,"",IF(ISNUMBER(O77),O77,0)+IF(ISNUMBER(Q77),Q77,0)) ->  | U77: =IF(T77="","",IF($H77="","",IF(ISNUMBER(T77),$H77*T77,0))) ->  | W77: =IF(V77="","",IF($H77="","",IF(ISNUMBER(V77),$H77*V77,0))) ->  | X77: =IF(IF(ISNUMBER(U77),U77,0)+IF(ISNUMBER(W77),W77,0)=0,"",IF(ISNUMBER(U77),U77,0)+IF(ISNUMBER(W77),W77,0)) ->  | AA77: =IF(Z77="","",IF($H77="","",IF(ISNUMBER(Z77),$H77*Z77,0))) ->  | AC77: =IF(AB77="","",IF($H77="","",IF(ISNUMBER(AB77),$H77*AB77,0))) ->  | AD77: =IF(IF(ISNUMBER(AA77),AA77,0)+IF(ISNUMBER(AC77),AC77,0)=0,"",IF(ISNUMBER(AA77),AA77,0)+IF(ISNUMBER(AC77),AC77,0)) ->  | AG77: =IF(AF77="","",IF($H77="","",IF(ISNUMBER(AF77),$H77*AF77,0))) ->  | AI77: =IF(AH77="","",IF($H77="","",IF(ISNUMBER(AH77),$H77*AH77,0))) ->  | AJ77: =IF(IF(ISNUMBER(AG77),AG77,0)+IF(ISNUMBER(AI77),AI77,0)=0,"",IF(ISNUMBER(AG77),AG77,0)+IF(ISNUMBER(AI77),AI77,0)) ->  | AM77: =IF(AL77="","",IF($H77="","",IF(ISNUMBER(AL77),$H77*AL77,0))) ->  | AO77: =IF(AN77="","",IF($H77="","",IF(ISNUMBER(AN77),$H77*AN77,0))) ->  | AP77: =IF(IF(ISNUMBER(AM77),AM77,0)+IF(ISNUMBER(AO77),AO77,0)=0,"",IF(ISNUMBER(AM77),AM77,0)+IF(ISNUMBER(AO77),AO77,0)) ->  | AS77: =IF(AR77="","",IF($H77="","",IF(ISNUMBER(AR77),$H77*AR77,0))) ->  | AU77: =IF(AT77="","",IF($H77="","",IF(ISNUMBER(AT77),$H77*AT77,0))) ->  | AV77: =IF(IF(ISNUMBER(AS77),AS77,0)+IF(ISNUMBER(AU77),AU77,0)=0,"",IF(ISNUMBER(AS77),AS77,0)+IF(ISNUMBER(AU77),AU77,0)) ->  | AY77: =IF(AX77="","",IF($H77="","",IF(ISNUMBER(AX77),$H77*AX77,0))) ->  | BA77: =IF(AZ77="","",IF($H77="","",IF(ISNUMBER(AZ77),$H77*AZ77,0))) ->  | BB77: =IF(IF(ISNUMBER(AY77),AY77,0)+IF(ISNUMBER(BA77),BA77,0)=0,"",IF(ISNUMBER(AY77),AY77,0)+IF(ISNUMBER(BA77),BA77,0)) ->  | BE77: =IF(BD77="","",IF($H77="","",IF(ISNUMBER(BD77),$H77*BD77,0))) ->  | BG77: =IF(BF77="","",IF($H77="","",IF(ISNUMBER(BF77),$H77*BF77,0))) ->  | BH77: =IF(IF(ISNUMBER(BE77),BE77,0)+IF(ISNUMBER(BG77),BG77,0)=0,"",IF(ISNUMBER(BE77),BE77,0)+IF(ISNUMBER(BG77),BG77,0)) ->  | BK77: =IF(BJ77="","",IF($H77="","",IF(ISNUMBER(BJ77),$H77*BJ77,0))) ->  | BM77: =IF(BL77="","",IF($H77="","",IF(ISNUMBER(BL77),$H77*BL77,0))) ->  | BN77: =IF(IF(ISNUMBER(BK77),BK77,0)+IF(ISNUMBER(BM77),BM77,0)=0,"",IF(ISNUMBER(BK77),BK77,0)+IF(ISNUMBER(BM77),BM77,0)) ->  | BQ77: =IF(BP77="","",IF($H77="","",IF(ISNUMBER(BP77),$H77*BP77,0))) ->  | BS77: =IF(BR77="","",IF($H77="","",IF(ISNUMBER(BR77),$H77*BR77,0))) ->  | BT77: =IF(IF(ISNUMBER(BQ77),BQ77,0)+IF(ISNUMBER(BS77),BS77,0)=0,"",IF(ISNUMBER(BQ77),BQ77,0)+IF(ISNUMBER(BS77),BS77,0)) ->  | BW77: =IF(BV77="","",IF($H77="","",IF(ISNUMBER(BV77),$H77*BV77,0))) ->  | BY77: =IF(BX77="","",IF($H77="","",IF(ISNUMBER(BX77),$H77*BX77,0))) ->  | BZ77: =IF(IF(ISNUMBER(BW77),BW77,0)+IF(ISNUMBER(BY77),BY77,0)=0,"",IF(ISNUMBER(BW77),BW77,0)+IF(ISNUMBER(BY77),BY77,0)) -> 
B78: D3.1 | C78: FCU controller to have ability to control, set-point, fan speed, on/off, modulating control valve, closing of modulating valve when unit is switched off and to sense room temperature c/w weekly timer program | K78: =IF(J78="","",IF($H78="","",IF(ISNUMBER(J78),$H78*J78,0))) ->  | L78: =IF(IF(ISNUMBER(#REF!),#REF!,0)+IF(ISNUMBER(K78),K78,0)=0,"",IF(ISNUMBER(#REF!),#REF!,0)+IF(ISNUMBER(K78),K78,0)) ->  | O78: =IF(N78="","",IF($H78="","",IF(ISNUMBER(N78),$H78*N78,0))) ->  | Q78: =IF(P78="","",IF($H78="","",IF(ISNUMBER(P78),$H78*P78,0))) ->  | R78: =IF(IF(ISNUMBER(O78),O78,0)+IF(ISNUMBER(Q78),Q78,0)=0,"",IF(ISNUMBER(O78),O78,0)+IF(ISNUMBER(Q78),Q78,0)) ->  | U78: =IF(T78="","",IF($H78="","",IF(ISNUMBER(T78),$H78*T78,0))) ->  | W78: =IF(V78="","",IF($H78="","",IF(ISNUMBER(V78),$H78*V78,0))) ->  | X78: =IF(IF(ISNUMBER(U78),U78,0)+IF(ISNUMBER(W78),W78,0)=0,"",IF(ISNUMBER(U78),U78,0)+IF(ISNUMBER(W78),W78,0)) ->  | AA78: =IF(Z78="","",IF($H78="","",IF(ISNUMBER(Z78),$H78*Z78,0))) ->  | AC78: =IF(AB78="","",IF($H78="","",IF(ISNUMBER(AB78),$H78*AB78,0))) ->  | AD78: =IF(IF(ISNUMBER(AA78),AA78,0)+IF(ISNUMBER(AC78),AC78,0)=0,"",IF(ISNUMBER(AA78),AA78,0)+IF(ISNUMBER(AC78),AC78,0)) ->  | AG78: =IF(AF78="","",IF($H78="","",IF(ISNUMBER(AF78),$H78*AF78,0))) ->  | AI78: =IF(AH78="","",IF($H78="","",IF(ISNUMBER(AH78),$H78*AH78,0))) ->  | AJ78: =IF(IF(ISNUMBER(AG78),AG78,0)+IF(ISNUMBER(AI78),AI78,0)=0,"",IF(ISNUMBER(AG78),AG78,0)+IF(ISNUMBER(AI78),AI78,0)) ->  | AM78: =IF(AL78="","",IF($H78="","",IF(ISNUMBER(AL78),$H78*AL78,0))) ->  | AO78: =IF(AN78="","",IF($H78="","",IF(ISNUMBER(AN78),$H78*AN78,0))) ->  | AP78: =IF(IF(ISNUMBER(AM78),AM78,0)+IF(ISNUMBER(AO78),AO78,0)=0,"",IF(ISNUMBER(AM78),AM78,0)+IF(ISNUMBER(AO78),AO78,0)) ->  | AS78: =IF(AR78="","",IF($H78="","",IF(ISNUMBER(AR78),$H78*AR78,0))) ->  | AU78: =IF(AT78="","",IF($H78="","",IF(ISNUMBER(AT78),$H78*AT78,0))) ->  | AV78: =IF(IF(ISNUMBER(AS78),AS78,0)+IF(ISNUMBER(AU78),AU78,0)=0,"",IF(ISNUMBER(AS78),AS78,0)+IF(ISNUMBER(AU78),AU78,0)) ->  | AY78: =IF(AX78="","",IF($H78="","",IF(ISNUMBER(AX78),$H78*AX78,0))) ->  | BA78: =IF(AZ78="","",IF($H78="","",IF(ISNUMBER(AZ78),$H78*AZ78,0))) ->  | BB78: =IF(IF(ISNUMBER(AY78),AY78,0)+IF(ISNUMBER(BA78),BA78,0)=0,"",IF(ISNUMBER(AY78),AY78,0)+IF(ISNUMBER(BA78),BA78,0)) ->  | BE78: =IF(BD78="","",IF($H78="","",IF(ISNUMBER(BD78),$H78*BD78,0))) ->  | BG78: =IF(BF78="","",IF($H78="","",IF(ISNUMBER(BF78),$H78*BF78,0))) ->  | BH78: =IF(IF(ISNUMBER(BE78),BE78,0)+IF(ISNUMBER(BG78),BG78,0)=0,"",IF(ISNUMBER(BE78),BE78,0)+IF(ISNUMBER(BG78),BG78,0)) ->  | BK78: =IF(BJ78="","",IF($H78="","",IF(ISNUMBER(BJ78),$H78*BJ78,0))) ->  | BM78: =IF(BL78="","",IF($H78="","",IF(ISNUMBER(BL78),$H78*BL78,0))) ->  | BN78: =IF(IF(ISNUMBER(BK78),BK78,0)+IF(ISNUMBER(BM78),BM78,0)=0,"",IF(ISNUMBER(BK78),BK78,0)+IF(ISNUMBER(BM78),BM78,0)) ->  | BQ78: =IF(BP78="","",IF($H78="","",IF(ISNUMBER(BP78),$H78*BP78,0))) ->  | BS78: =IF(BR78="","",IF($H78="","",IF(ISNUMBER(BR78),$H78*BR78,0))) ->  | BT78: =IF(IF(ISNUMBER(BQ78),BQ78,0)+IF(ISNUMBER(BS78),BS78,0)=0,"",IF(ISNUMBER(BQ78),BQ78,0)+IF(ISNUMBER(BS78),BS78,0)) ->  | BW78: =IF(BV78="","",IF($H78="","",IF(ISNUMBER(BV78),$H78*BV78,0))) ->  | BY78: =IF(BX78="","",IF($H78="","",IF(ISNUMBER(BX78),$H78*BX78,0))) ->  | BZ78: =IF(IF(ISNUMBER(BW78),BW78,0)+IF(ISNUMBER(BY78),BY78,0)=0,"",IF(ISNUMBER(BW78),BW78,0)+IF(ISNUMBER(BY78),BY78,0)) -> 
B79: D3.1.1 | C79: AHU wall thermostat | D79: No. | E79: 0 | G79: =F79*E79 -> 0 | K79: =IF(J79="","",IF($H79="","",IF(ISNUMBER(J79),$H79*J79,0))) ->  | L79: =IF(IF(ISNUMBER(#REF!),#REF!,0)+IF(ISNUMBER(K79),K79,0)=0,"",IF(ISNUMBER(#REF!),#REF!,0)+IF(ISNUMBER(K79),K79,0)) ->  | O79: =IF(N79="","",IF($H79="","",IF(ISNUMBER(N79),$H79*N79,0))) ->  | Q79: =IF(P79="","",IF($H79="","",IF(ISNUMBER(P79),$H79*P79,0))) ->  | R79: =IF(IF(ISNUMBER(O79),O79,0)+IF(ISNUMBER(Q79),Q79,0)=0,"",IF(ISNUMBER(O79),O79,0)+IF(ISNUMBER(Q79),Q79,0)) ->  | U79: =IF(T79="","",IF($H79="","",IF(ISNUMBER(T79),$H79*T79,0))) ->  | W79: =IF(V79="","",IF($H79="","",IF(ISNUMBER(V79),$H79*V79,0))) ->  | X79: =IF(IF(ISNUMBER(U79),U79,0)+IF(ISNUMBER(W79),W79,0)=0,"",IF(ISNUMBER(U79),U79,0)+IF(ISNUMBER(W79),W79,0)) ->  | AA79: =IF(Z79="","",IF($H79="","",IF(ISNUMBER(Z79),$H79*Z79,0))) ->  | AC79: =IF(AB79="","",IF($H79="","",IF(ISNUMBER(AB79),$H79*AB79,0))) ->  | AD79: =IF(IF(ISNUMBER(AA79),AA79,0)+IF(ISNUMBER(AC79),AC79,0)=0,"",IF(ISNUMBER(AA79),AA79,0)+IF(ISNUMBER(AC79),AC79,0)) ->  | AG79: =IF(AF79="","",IF($H79="","",IF(ISNUMBER(AF79),$H79*AF79,0))) ->  | AI79: =IF(AH79="","",IF($H79="","",IF(ISNUMBER(AH79),$H79*AH79,0))) ->  | AJ79: =IF(IF(ISNUMBER(AG79),AG79,0)+IF(ISNUMBER(AI79),AI79,0)=0,"",IF(ISNUMBER(AG79),AG79,0)+IF(ISNUMBER(AI79),AI79,0)) ->  | AM79: =IF(AL79="","",IF($H79="","",IF(ISNUMBER(AL79),$H79*AL79,0))) ->  | AO79: =IF(AN79="","",IF($H79="","",IF(ISNUMBER(AN79),$H79*AN79,0))) ->  | AP79: =IF(IF(ISNUMBER(AM79),AM79,0)+IF(ISNUMBER(AO79),AO79,0)=0,"",IF(ISNUMBER(AM79),AM79,0)+IF(ISNUMBER(AO79),AO79,0)) ->  | AS79: =IF(AR79="","",IF($H79="","",IF(ISNUMBER(AR79),$H79*AR79,0))) ->  | AU79: =IF(AT79="","",IF($H79="","",IF(ISNUMBER(AT79),$H79*AT79,0))) ->  | AV79: =IF(IF(ISNUMBER(AS79),AS79,0)+IF(ISNUMBER(AU79),AU79,0)=0,"",IF(ISNUMBER(AS79),AS79,0)+IF(ISNUMBER(AU79),AU79,0)) ->  | AY79: =IF(AX79="","",IF($H79="","",IF(ISNUMBER(AX79),$H79*AX79,0))) ->  | BA79: =IF(AZ79="","",IF($H79="","",IF(ISNUMBER(AZ79),$H79*AZ79,0))) ->  | BB79: =IF(IF(ISNUMBER(AY79),AY79,0)+IF(ISNUMBER(BA79),BA79,0)=0,"",IF(ISNUMBER(AY79),AY79,0)+IF(ISNUMBER(BA79),BA79,0)) ->  | BE79: =IF(BD79="","",IF($H79="","",IF(ISNUMBER(BD79),$H79*BD79,0))) ->  | BG79: =IF(BF79="","",IF($H79="","",IF(ISNUMBER(BF79),$H79*BF79,0))) ->  | BH79: =IF(IF(ISNUMBER(BE79),BE79,0)+IF(ISNUMBER(BG79),BG79,0)=0,"",IF(ISNUMBER(BE79),BE79,0)+IF(ISNUMBER(BG79),BG79,0)) ->  | BK79: =IF(BJ79="","",IF($H79="","",IF(ISNUMBER(BJ79),$H79*BJ79,0))) ->  | BM79: =IF(BL79="","",IF($H79="","",IF(ISNUMBER(BL79),$H79*BL79,0))) ->  | BN79: =IF(IF(ISNUMBER(BK79),BK79,0)+IF(ISNUMBER(BM79),BM79,0)=0,"",IF(ISNUMBER(BK79),BK79,0)+IF(ISNUMBER(BM79),BM79,0)) ->  | BQ79: =IF(BP79="","",IF($H79="","",IF(ISNUMBER(BP79),$H79*BP79,0))) ->  | BS79: =IF(BR79="","",IF($H79="","",IF(ISNUMBER(BR79),$H79*BR79,0))) ->  | BT79: =IF(IF(ISNUMBER(BQ79),BQ79,0)+IF(ISNUMBER(BS79),BS79,0)=0,"",IF(ISNUMBER(BQ79),BQ79,0)+IF(ISNUMBER(BS79),BS79,0)) ->  | BW79: =IF(BV79="","",IF($H79="","",IF(ISNUMBER(BV79),$H79*BV79,0))) ->  | BY79: =IF(BX79="","",IF($H79="","",IF(ISNUMBER(BX79),$H79*BX79,0))) ->  | BZ79: =IF(IF(ISNUMBER(BW79),BW79,0)+IF(ISNUMBER(BY79),BY79,0)=0,"",IF(ISNUMBER(BW79),BW79,0)+IF(ISNUMBER(BY79),BY79,0)) -> 
B81: E | C81: Pumps
B82: E1 | C82: Price to include supply and delivery to site, sub-contractor mark-up, c/w pump frame
B83: E1.1 | C83: Base-mounted Primary Chilled Water Pump
B84: E1.1.1 | C84: Pump: 17.50l/s, 284kPa, Temp (-2) -13, 25% glycol) | D84: No | E84: 4 | G84: =F84*E84 -> 0
B86: E1.2 | C86: Base-mounted Secondary Chilled Water Pump
B87: E1.2.1 | C87: Pump: 29.61l/s, 218kPa, Temp 5-13, 25% glycol) | D87: No | E87: 2 | G87: =F87*E87 -> 0
B89: E1.3 | C89: Base-mounted Primary Hot Water Pump (Heat Recovery)
B90: E1.3.1 | C90: Pump: 6.38l/s, 72kPa, Temp 20-50, water) | D90: No | E90: 2 | G90: =F90*E90 -> 0
B92: E1.4 | C92: Base-mounted Secondary Hot Water Pump (Heat Recovery)
B93: E1.4.1 | C93: Pump: 26.89l/s, 159kPa, Temp 20-50, water) | D93: No | E93: 2 | G93: =F93*E93 -> 0
B95: E1.5 | C95: Base-mounted Primary Hot Water Pump (Heat Pemp)
B96: E1.5.1 | C96: Pump: 26.10l/s, 59kPa, Temp 20-50, water) | D96: No | E96: 2 | G96: =F96*E96 -> 0
B98: E1.6 | C98: Installation of Pumps
B99: E1.6.1 | C99: Anti-vibration mountings per pump | D99: Lot | E99: =SUM(E84:E98) -> 12 | G99: =F99*E99 -> 0
B100: E1.6.2 | C100: Installation of Pumps (Labour Only) | D100: Lot | E100: =$E$99 -> 12 | G100: 0
B101: E1.6.3 | C101: Chilled/Hot water pipe connections (Labour only) | D101: Lot | E101: 12 | G101: 0
B102: E1.6.4 | C102: Electrical Connection of Pump and E-stop (Labour Only) | D102: Lot | E102: 12 | G102: 0
B103: E1.6.5 | C103: Balancing and Commissioning of Pump | D103: Lot | E103: 12 | G103: 0
B104: E1.6.6 | C104: Stainless Steel Drip Tray (Supply and Install) | D104: Lot | E104: 12 | G104: 0
B105: E1.6.7 | C105: Driptray Connection to nearest Full-bore Drain (Including material and Labour) | D105: Lot | E105: 12 | G105: 0
B107: F | C107: Hot Water Storage Tank
B108: F1 | C108: Hot water tank including insulation | Q108: =IF(P108="","",IF($H108="","",IF(ISNUMBER(P108),$H108*P108,0))) ->  | R108: =IF(IF(ISNUMBER(O108),O108,0)+IF(ISNUMBER(Q108),Q108,0)=0,"",IF(ISNUMBER(O108),O108,0)+IF(ISNUMBER(Q108),Q108,0)) ->  | U108: =IF(T108="","",IF($H108="","",IF(ISNUMBER(T108),$H108*T108,0))) ->  | W108: =IF(V108="","",IF($H108="","",IF(ISNUMBER(V108),$H108*V108,0))) ->  | X108: =IF(IF(ISNUMBER(U108),U108,0)+IF(ISNUMBER(W108),W108,0)=0,"",IF(ISNUMBER(U108),U108,0)+IF(ISNUMBER(W108),W108,0)) ->  | AA108: =IF(Z108="","",IF($H108="","",IF(ISNUMBER(Z108),$H108*Z108,0))) ->  | AC108: =IF(AB108="","",IF($H108="","",IF(ISNUMBER(AB108),$H108*AB108,0))) ->  | AD108: =IF(IF(ISNUMBER(AA108),AA108,0)+IF(ISNUMBER(AC108),AC108,0)=0,"",IF(ISNUMBER(AA108),AA108,0)+IF(ISNUMBER(AC108),AC108,0)) ->  | AG108: =IF(AF108="","",IF($H108="","",IF(ISNUMBER(AF108),$H108*AF108,0))) ->  | AI108: =IF(AH108="","",IF($H108="","",IF(ISNUMBER(AH108),$H108*AH108,0))) ->  | AJ108: =IF(IF(ISNUMBER(AG108),AG108,0)+IF(ISNUMBER(AI108),AI108,0)=0,"",IF(ISNUMBER(AG108),AG108,0)+IF(ISNUMBER(AI108),AI108,0)) ->  | AM108: =IF(AL108="","",IF($H108="","",IF(ISNUMBER(AL108),$H108*AL108,0))) ->  | AO108: =IF(AN108="","",IF($H108="","",IF(ISNUMBER(AN108),$H108*AN108,0))) ->  | AP108: =IF(IF(ISNUMBER(AM108),AM108,0)+IF(ISNUMBER(AO108),AO108,0)=0,"",IF(ISNUMBER(AM108),AM108,0)+IF(ISNUMBER(AO108),AO108,0)) ->  | AS108: =IF(AR108="","",IF($H108="","",IF(ISNUMBER(AR108),$H108*AR108,0))) ->  | AU108: =IF(AT108="","",IF($H108="","",IF(ISNUMBER(AT108),$H108*AT108,0))) ->  | AV108: =IF(IF(ISNUMBER(AS108),AS108,0)+IF(ISNUMBER(AU108),AU108,0)=0,"",IF(ISNUMBER(AS108),AS108,0)+IF(ISNUMBER(AU108),AU108,0)) ->  | AY108: =IF(AX108="","",IF($H108="","",IF(ISNUMBER(AX108),$H108*AX108,0))) ->  | BA108: =IF(AZ108="","",IF($H108="","",IF(ISNUMBER(AZ108),$H108*AZ108,0))) ->  | BB108: =IF(IF(ISNUMBER(AY108),AY108,0)+IF(ISNUMBER(BA108),BA108,0)=0,"",IF(ISNUMBER(AY108),AY108,0)+IF(ISNUMBER(BA108),BA108,0)) ->  | BE108: =IF(BD108="","",IF($H108="","",IF(ISNUMBER(BD108),$H108*BD108,0))) ->  | BG108: =IF(BF108="","",IF($H108="","",IF(ISNUMBER(BF108),$H108*BF108,0))) ->  | BH108: =IF(IF(ISNUMBER(BE108),BE108,0)+IF(ISNUMBER(BG108),BG108,0)=0,"",IF(ISNUMBER(BE108),BE108,0)+IF(ISNUMBER(BG108),BG108,0)) ->  | BK108: =IF(BJ108="","",IF($H108="","",IF(ISNUMBER(BJ108),$H108*BJ108,0))) ->  | BM108: =IF(BL108="","",IF($H108="","",IF(ISNUMBER(BL108),$H108*BL108,0))) ->  | BN108: =IF(IF(ISNUMBER(BK108),BK108,0)+IF(ISNUMBER(BM108),BM108,0)=0,"",IF(ISNUMBER(BK108),BK108,0)+IF(ISNUMBER(BM108),BM108,0)) ->  | BQ108: =IF(BP108="","",IF($H108="","",IF(ISNUMBER(BP108),$H108*BP108,0))) ->  | BS108: =IF(BR108="","",IF($H108="","",IF(ISNUMBER(BR108),$H108*BR108,0))) ->  | BT108: =IF(IF(ISNUMBER(BQ108),BQ108,0)+IF(ISNUMBER(BS108),BS108,0)=0,"",IF(ISNUMBER(BQ108),BQ108,0)+IF(ISNUMBER(BS108),BS108,0)) ->  | BW108: =IF(BV108="","",IF($H108="","",IF(ISNUMBER(BV108),$H108*BV108,0))) ->  | BY108: =IF(BX108="","",IF($H108="","",IF(ISNUMBER(BX108),$H108*BX108,0))) ->  | BZ108: =IF(IF(ISNUMBER(BW108),BW108,0)+IF(ISNUMBER(BY108),BY108,0)=0,"",IF(ISNUMBER(BW108),BW108,0)+IF(ISNUMBER(BY108),BY108,0)) -> 
B109: F1.1 | C109: 40000L | D109: No | E109: 1 | G109: =F109*E109 -> 0
B111: G | C111: Air Control
B112: G1 | C112: Motorised Balancing damper c/w 24 V Actuator, supply and installed | Q112: =IF(P112="","",IF($H112="","",IF(ISNUMBER(P112),$H112*P112,0))) ->  | R112: =IF(IF(ISNUMBER(O112),O112,0)+IF(ISNUMBER(Q112),Q112,0)=0,"",IF(ISNUMBER(O112),O112,0)+IF(ISNUMBER(Q112),Q112,0)) ->  | U112: =IF(T112="","",IF($H112="","",IF(ISNUMBER(T112),$H112*T112,0))) ->  | W112: =IF(V112="","",IF($H112="","",IF(ISNUMBER(V112),$H112*V112,0))) ->  | X112: =IF(IF(ISNUMBER(U112),U112,0)+IF(ISNUMBER(W112),W112,0)=0,"",IF(ISNUMBER(U112),U112,0)+IF(ISNUMBER(W112),W112,0)) ->  | AA112: =IF(Z112="","",IF($H112="","",IF(ISNUMBER(Z112),$H112*Z112,0))) ->  | AC112: =IF(AB112="","",IF($H112="","",IF(ISNUMBER(AB112),$H112*AB112,0))) ->  | AD112: =IF(IF(ISNUMBER(AA112),AA112,0)+IF(ISNUMBER(AC112),AC112,0)=0,"",IF(ISNUMBER(AA112),AA112,0)+IF(ISNUMBER(AC112),AC112,0)) ->  | AG112: =IF(AF112="","",IF($H112="","",IF(ISNUMBER(AF112),$H112*AF112,0))) ->  | AI112: =IF(AH112="","",IF($H112="","",IF(ISNUMBER(AH112),$H112*AH112,0))) ->  | AJ112: =IF(IF(ISNUMBER(AG112),AG112,0)+IF(ISNUMBER(AI112),AI112,0)=0,"",IF(ISNUMBER(AG112),AG112,0)+IF(ISNUMBER(AI112),AI112,0)) ->  | AM112: =IF(AL112="","",IF($H112="","",IF(ISNUMBER(AL112),$H112*AL112,0))) ->  | AO112: =IF(AN112="","",IF($H112="","",IF(ISNUMBER(AN112),$H112*AN112,0))) ->  | AP112: =IF(IF(ISNUMBER(AM112),AM112,0)+IF(ISNUMBER(AO112),AO112,0)=0,"",IF(ISNUMBER(AM112),AM112,0)+IF(ISNUMBER(AO112),AO112,0)) ->  | AS112: =IF(AR112="","",IF($H112="","",IF(ISNUMBER(AR112),$H112*AR112,0))) ->  | AU112: =IF(AT112="","",IF($H112="","",IF(ISNUMBER(AT112),$H112*AT112,0))) ->  | AV112: =IF(IF(ISNUMBER(AS112),AS112,0)+IF(ISNUMBER(AU112),AU112,0)=0,"",IF(ISNUMBER(AS112),AS112,0)+IF(ISNUMBER(AU112),AU112,0)) ->  | AY112: =IF(AX112="","",IF($H112="","",IF(ISNUMBER(AX112),$H112*AX112,0))) ->  | BA112: =IF(AZ112="","",IF($H112="","",IF(ISNUMBER(AZ112),$H112*AZ112,0))) ->  | BB112: =IF(IF(ISNUMBER(AY112),AY112,0)+IF(ISNUMBER(BA112),BA112,0)=0,"",IF(ISNUMBER(AY112),AY112,0)+IF(ISNUMBER(BA112),BA112,0)) ->  | BE112: =IF(BD112="","",IF($H112="","",IF(ISNUMBER(BD112),$H112*BD112,0))) ->  | BG112: =IF(BF112="","",IF($H112="","",IF(ISNUMBER(BF112),$H112*BF112,0))) ->  | BH112: =IF(IF(ISNUMBER(BE112),BE112,0)+IF(ISNUMBER(BG112),BG112,0)=0,"",IF(ISNUMBER(BE112),BE112,0)+IF(ISNUMBER(BG112),BG112,0)) ->  | BK112: =IF(BJ112="","",IF($H112="","",IF(ISNUMBER(BJ112),$H112*BJ112,0))) ->  | BM112: =IF(BL112="","",IF($H112="","",IF(ISNUMBER(BL112),$H112*BL112,0))) ->  | BN112: =IF(IF(ISNUMBER(BK112),BK112,0)+IF(ISNUMBER(BM112),BM112,0)=0,"",IF(ISNUMBER(BK112),BK112,0)+IF(ISNUMBER(BM112),BM112,0)) ->  | BQ112: =IF(BP112="","",IF($H112="","",IF(ISNUMBER(BP112),$H112*BP112,0))) ->  | BS112: =IF(BR112="","",IF($H112="","",IF(ISNUMBER(BR112),$H112*BR112,0))) ->  | BT112: =IF(IF(ISNUMBER(BQ112),BQ112,0)+IF(ISNUMBER(BS112),BS112,0)=0,"",IF(ISNUMBER(BQ112),BQ112,0)+IF(ISNUMBER(BS112),BS112,0)) ->  | BW112: =IF(BV112="","",IF($H112="","",IF(ISNUMBER(BV112),$H112*BV112,0))) ->  | BY112: =IF(BX112="","",IF($H112="","",IF(ISNUMBER(BX112),$H112*BX112,0))) ->  | BZ112: =IF(IF(ISNUMBER(BW112),BW112,0)+IF(ISNUMBER(BY112),BY112,0)=0,"",IF(ISNUMBER(BW112),BW112,0)+IF(ISNUMBER(BY112),BY112,0)) -> 
B113: G1.1 | C113: Motorised Balancing Dampers
B114: G1.1.1 | C114: 500 x 1200, motorised c/w 24V motor | D114: No | E114: =1+1+1 -> 3 | G114: =F114*E114 -> 0
B115: G1.1.2 | C115: 600 x 1300, motorised c/w 24V motor | D115: No | E115: =2+2 -> 4 | G115: =F115*E115 -> 0
B116: G1.1.3 | C116: 900 x 1300, motorised c/w 24V motor | D116: No | E116: =2+2 -> 4 | G116: 0
B117: G1.1.4 | C117: 1000 x 1450, motorised c/w 24V motor | D117: No | E117: =2 -> 2 | G117: 0
B118: G1.1.5 | C118: 1200 x 1650, motorised c/w 24V motor | D118: No | E118: =2+2 -> 4 | G118: 0
B120: H | C120: Variable Speed Drives
B121: H1 | C121: VSD - 1.1 kW | D121: No | E121: 2 | G121: =F121*E121 -> 0
B122: H2 | C122: VSD - 3 kW | D122: No | E122: 2 | G122: 0
B123: H3 | C123: VSD - 7.5 kW | D123: No | E123: 2 | G123: =F123*E123 -> 0
B124: H4 | C124: VSD - 11 kW | D124: No | E124: =4+2 -> 6 | G124: 0
B126: I | C126: CW Ceiling Cassettes
B127: I1 | C127: 4-Pipe for chilled water cooling coils and hot water heating coils, complete with accessories,
C128: wall-mounted controller, condensate piping, supplied, installed, tested and commissioned.
B129: I1.1 | C129: 10,0 kW (Nominal Cooling) and 6,7 kW (Nominal heating), 4-way blow | D129: No | E129: 2.00 | G129: =F129*E129 -> 0
B130: I1.2 | C130: 4,0 kW (Nominal Cooling) and 3,0 kW (Nominal heating), 4-way blow | D130: No | E130: 1.00 | G130: 0
B131: I1.3 | C131: 8,0 kW (Nominal Cooling) and 5,1 kW (nominal heating), 4-way blow | D131: No | E131: 1.00 | G131: 0
B133: J1 | C133: Thermal Energy Storage Tanks
B134: J1.1 | C134: Ice storage tanks as per the Specification document - double inlet, double outlet type | D134: No | E134: 6.00 | G134: =F134*E134 -> 0
B135: J1.2 | C135: Ice storage tanks as per the Specification document - single inlet, single outlet type | D135: No | E135: 1.00 | G135: 0
G138: =SUM(G5:G136) -> 0

Sheet Terminals
A1: PROJECT: | B1: Procurement and installation of an HVAC system and replacement of the BMS System at the CSIR ICC for a period of three (3) years
A2: RFP No. | B2: RFP NO. 9501/16/04/2025
B4: Page/Item | C4: Bill description | D4: Unit | E4: Quantity | F4: Tender Rate | G4: Value
B5: A | C5: Constant Volume Air Terminals
B6: A1 | C6: Weather Louvres
B7: A1.1 | C7: 500 x 1200, Natural Anodised | D7: No | E7: =1+1+1 -> 3 | G7: =F7*E7 -> 0
B8: A1.2 | C8: 600 x 1300, Natural Anodised | D8: No | E8: =2+2 -> 4 | G8: =F8*E8 -> 0
B9: A1.3 | C9: 900 x 1300, Natural Anodised | D9: No | E9: =2+2 -> 4 | G9: =F9*E9 -> 0
B10: A1.4 | C10: 1000 x 1450, Natural Anodised | D10: No | E10: =2 -> 2 | G10: 0
B11: A1.5 | C11: 1200 x 1650, Natural Anodised | D11: No | E11: =2+2 -> 4 | G11: 0
G65: =SUM(G5:G64) -> 0

Sheet VRF
A1: PROJECT: | B1: Procurement and installation of an HVAC system and replacement of the BMS System at the CSIR ICC for a period of three (3) years
A2: RFP No. | B2: RFP NO. 9501/16/04/2025
B4: Page/Item | C4: Bill description | D4: Unit | E4: Quantity | F4: Tender Rate | G4: Value
B5: A | C5: VRF Heat Recovery Air-conditioning Units
B6: A1 | C6: Indoor Units
C7: VRF Heat recovery type indoor Air-conditioning units, to specification, tested and installed. Including all necessary refrigerant piping including thermal insulation , trunking, final electrical connections between isolator and indoor unit, p-trap condensate outlets, mounting accessories and supply air sound attenuators (for hide away units). All Indoor units must be equipped with Electronic expansion valves and fitted with ECcontrolled supply air fans, and wall-mounted controllers. (Samsung, Daikin or other approved)
C8: The Quantity represents the total number of mechanical equipment items for a particular type, sub-type and size.
C9: The tendered rates for each item shall include full compensation for any costs, work or materials required to provide and install each piece of mechanical equipment, as specified and approved by the Engineer.
C10: Length of refrigerant piping measured is only the linear meters between indoor unit and refrigerant controller box (not the sum of the liquid and suction line).
B11: A1.1 | C11: Office 1 - One-way blow ceiling cassette (AC02) | D11: No | E11: 1 | G11: =F11*E11 -> 0
B12: =IF(D12<>"",MAX(#REF!)+1,"") ->  | C12: 2.8 kW (Nominal Cooling) inclusive of 18m refrigerant
C13: piping and accessories
B14: A1.2 | C14: Office 2 - Four-way blow ceiling cassette (AC04) | D14: No | E14: 1 | G14: =F14*E14 -> 0
B15: =IF(D15<>"",MAX(B11:B14)+1,"") ->  | C15: 4.5 kW (Nominal Cooling) inclusive of 24m refrigerant
C16: piping and accessories
B17: A1.3 | C17: Office 3 - One-way blow ceiling cassette (AC02) | D17: No | E17: 1 | G17: =F17*E17 -> 0
B18: =IF(D18<>"",MAX(B11:B17)+1,"") ->  | C18: 2.8 kW (Nominal Cooling) inclusive of 3m refrigerant
C19: piping and accessories
B20: A1.4 | C20: Office 4 - One-way blow ceiling cassette (AC02) | D20: No | E20: 1 | G20: =F20*E20 -> 0
B21: =IF(D21<>"",MAX(B11:B20)+1,"") ->  | C21: 2.8 kW (Nominal Cooling) inclusive of 7m refrigerant
C22: piping and accessories
B23: A1.5 | C23: Office 5 - One-way blow ceiling cassette (AC02) | D23: No | E23: 1 | G23: =F23*E23 -> 0
B24: =IF(D24<>"",MAX(B14:B23)+1,"") ->  | C24: 2.8 kW (Nominal Cooling) inclusive of 13m refrigerant
C25: piping and accessories
B26: A1.6 | C26: Office 6 - One-way blow ceiling cassette (AC02) | D26: No | E26: 1 | G26: =F26*E26 -> 0
B27: =IF(D27<>"",MAX(B11:B26)+1,"") ->  | C27: 2.8 kW (Nominal Cooling) inclusive of 17m refrigerant
B28: =IF(D28<>"",MAX(B11:B27)+1,"") ->  | C28: piping and accessories
B29: A1.7 | C29: Coffee pause room (AC03) - One-way blow cassette | D29: No | E29: 1 | G29: =F29*E29 -> 0
B30: =IF(D30<>"",MAX(B20:B29)+1,"") ->  | C30: 3.6 kW (Nominal Cooling) inclusive of 11m refrigerant
B31: Project contingencies at 20% | C31: piping and accessories
B32: A1.8 | C32: Meeting Room 2 (AC04) - Four-way ceiling cassette | D32: No | E32: 1 | G32: =F32*E32 -> 0
B33: =IF(D33<>"",MAX(B16:B32)+1,"") ->  | C33: 4.5 kW (Nominal Cooling) inclusive of 7m refrigerant
B34: =IF(D34<>"",MAX(B16:B33)+1,"") ->  | C34: piping and accessories
B35: A1.9 | C35: Meeting Room 1 (AC05) - Four-way ceiling cassette | D35: No | E35: 1 | G35: =F35*E35 -> 0
C36: 7.1 kW (Nominal Cooling) inclusive of 3m refrigerant
C37: piping and accessories
B38: A1.10 | C38: Reception (AC01) - One-way ceiling cassette | D38: No | E38: 1 | G38: =F38*E38 -> 0
C39: 2.2 kW (Nominal Cooling) inclusive of 8m refrigerant
C40: piping and accessories
B42: A2 | C42: Condensing unit
C43: VRF heat recovery air cooled condensing units inclusive of drain pans and accessories to specification, tested and installed. Including all necessary refrigerant piping including thermal insulation ,trunking, final electrical connections between isolator and outdoor unit all to ensure a fully functional system as described. (Samsung, Daikin or other approved).
C44: The Quantity represents the total number of mechanical equipment items for a particular type, sub-type and size.
C45: The tendered rates for each item shall include full compensation for any costs, work or materials required to provide and install each piece of mechanical equipment, as specified and approved by the Engineer.
C46: Length of refrigerant piping measured is only the linear meters between outdoor unit and refrigerant controller box. Allow for galvanised trunking - pipes are exposed between outdoor unit and first refrigerant control box.
B47: A2.1 | C47: Outdoor Unit (ODU01) : Heat Recovery VRF | D47: No | E47: 1 | G47: =F47*E47 -> 0
C48: 33.6 kW (Nominal Capacity) inclusive of 39m refrigerant piping
C49: and accessories
B51: A3 | C51: Refrigerant Controller units (MCU or BS/BC box)
C52: Including all accessories, fittings, installation, etc. to ensure a fully functioning system as per the specifications and relevant standards.
C53: The Quantity represents the total number of mechanical equipment items for a particular type, sub-type and size.
C54: The tendered rates for each item shall include full compensation for any costs, work or materials required to provide and install each piece of mechanical equipment, as specified and approved by the Engineer.
B55: A3.1 | C55: 4 Port Controller (MCU01) | D55: No | E55: 1 | G55: =F55*E55 -> 0
B56: A3.2 | C56: 6 Port Controller (MCU02) | D56: No | E56: 1 | G56: =F56*E56 -> 0
B58: A4 | C58: Refrigerant Pipe Y-joints
B59: A4.1 | C59: 3 Y-joints to branch refrigerant controller units | D59: No | E59: 3 | G59: =F59*E59 -> 0
B61: A5 | C61: uPVC piping and fittings
B62: A5.1 | C62: Ø25 mm | D62: m | E62: 24 | G62: =F62*E62 -> 0
B63: A5.2 | C63: Ø50 mm | D63: m | E63: 45 | G63: =F63*E63 -> 0
B65: B | C65: Ducting
B66: B1 | C66: Price to include for low pressure galvanised ducting including 50mm Sonic Liner, installation and labour, c/w all fixing and supports
B67: B1.1 | C67: Insulated Straight Ducting
B68: B1.1.1 | C68: Category 1 - Ducting with a width or height < 750mm and semi-perimeter < 1150mm | D68: m² | E68: 40 | G68: =F68*E68 -> 0
B69: B1.1.2 | C69: Category 6 - Re-inforced Spiral Ducting
B70: B1.1.2.1 | C70: - dia 150mm | D70: m | E70: 13 | G70: =F70*E70 -> 0
B72: B1.2 | C72: Insulated Straight Ducting
B73: B2 | C73: Price to include for 50mm Sonic Liner c/w installation and labour
B74: B1.2.1 | C74: Category 1 - Ducting with a width or height < 750mm and semi-perimeter < 1150mm | D74: m² | E74: 40 | G74: =F74*E74 -> 0
B75: B1.2.6 | C75: Category 6 - Re-inforced Spiral Ducting
B76: B1.2.6.1 | C76: - dia 150mm | D76: m² | E76: 6 | G76: =F76*E76 -> 0
B78: B1.3 | C78: Insulated Transformations and Bends
B79: B1.3.1 | C79: Category 1 - Ducting with a width or height > 750mm and semi-perimeter < 1150mm | D79: m² | E79: 6 | G79: =F79*E79 -> 0
B81: C | C81: Fan Installation
B82: C1 | C82: Axial Flow Fan
B83: C1.1 | C83: Dia 560, 1400L/s @ 300Pa | D83: No | E83: 1 | G83: =F83*E83 -> 0
B84: C1.2 | C84: Fan mounting Feet | D84: No | E84: 1 | G84: =F84*E84 -> 0
B85: C1.3 | C85: Flanges | D85: No | E85: 1 | G85: =F85*E85 -> 0
B86: C1.4 | C86: AVM's | D86: No | E86: 1 | G86: =F86*E86 -> 0
B87: C1.5 | C87: Support Frame | D87: No | E87: 1 | G87: =F87*E87 -> 0
B89: C2 | C89: Electrical Distribution System
B90: C2.1 | C90: Electrical Connection of Axial Flow Fan | D90: No | E90: 1 | G90: =F90*E90 -> 0
B92: C3 | C92: Flexible canvas connections between equipment and duct installations
B93: C3.1 | C93: Axial Flow Fans | D93: No | E93: 2 | G93: =F93*E93 -> 0
B95: C4 | C95: Sound Attenuators for Fans
B96: C4.1 | C96: Dia 560 x 1.5D, POD | D96: No | E96: 2 | G96: =F96*E96 -> 0
B98: D | C98: Constant Volume Air Terminals
B99: D1 | C99: Fresh Air Grille
B100: D1.1 | C100: Supply air Disc Valves, Dia 200, dia 200 Neck | D100: No | E100: 10 | G100: =F100*E100 -> 0
G102: =SUM(G5:G101) -> 0
